[Event "56th Rubinstein Memorial A 2020"]
[Site "Polanica Zdroj"]
[Date "2020.08.22"]
[Round "8.4"]
[White "Stachecki, Mikolaj"]
[Black "Siekanska, Maria"]
[Result "1-0"]
[ECO "B81"]
[WhiteElo "1806"]
[BlackElo "1928"]
[Annotator "RC"]
[PlyCount "85"]
[EventDate "2020.08.15"]
[EventType "swiss"]
[EventCountry "POL"]
[SourceTitle "playchess.com"]
[Source "ChessBase"]
[SourceQuality "1"]
[TimeControl "40/5400+30:1800+30"]

1. e4 {[%emt 0:00:00]} c5 {[%emt 0:00:00]} 2. Nf3 {[%emt 0:00:00]} e6 {[%emt 0:00:00]} 3. d4 {[%emt 0:00:00]} cxd4 {[%emt 0:00:00]} 4. Nxd4 {[%emt 0:00:00]} Nf6 {[%emt 0:00:00]} 5. Nc3 {[%emt 0:00:04]} d6 {[%emt 0:00:02]} 6. g4 {[%emt 0:00:38]} Nc6 {[%emt 0:00:07]} 7. g5 {[%emt 0:00:09]} Nd7 {[%emt 0:00:09]} 8. Be3 {[%emt 0:00:13]} Be7 {[%emt 0:00:10]} 9. h4 {[%emt 0:00:10]} O-O {[%emt 0:00:09]} 10. Qh5 {[%emt 0:00:50]} a6 {[%emt 0:00:36]} 11. O-O-O {[%emt 0:00:09]} Nxd4 {[%emt 0:00:42]} 12. Bxd4 {[%emt 0:00:13]} b5 {[%emt 0:00:16]} 13. f4 {[%emt 0:00:17]} b4 {[%emt 0:01:36]} 14. Bxg7 {[%emt 0:00:55]} Kxg7 {[%emt 0:00:27]} 15. e5 {[%emt 0:00:19]} Nc5 {[%emt 0:00:57]} 16. Na4 {[%emt 0:00:12]} d5 {[%emt 0:00:34]} 17. Nxc5 {[%emt 0:00:07]} Bxc5 {[%emt 0:00:08]} 18. Qh6+ {[%emt 0:00:20]} Kh8 {[%emt 0:00:15]} 19. Bd3 {[%emt 0:00:12]} f5 {[%emt 0:00:21]} 20. exf6 {[%emt 0:00:33]} Ra7 {[%emt 0:00:15]} 21. Kb1 {[%emt 0:01:42]} a5 {[%emt 0:06:37]} 22. f5 {[%emt 0:01:55]} exf5 {[%emt 0:00:55]} 23. Rhe1 {[%emt 0:00:35]} a4 {[%emt 0:06:13]} 24. Bc4 {[%emt 0:06:41]} d4 {[%emt 0:07:51]} 25. f7 {[%emt 0:10:26]} Qb6 {[%emt 0:05:18]} 26. Re6 {[%emt 0:05:57]} Qd8 {[%emt 0:03:18]} 27. Rf6 {[%emt 0:16:51]} Rfxf7 {[%emt 0:02:43]} 28. Rxf7 {[%emt 0:03:03]} Rxf7 {[%emt 0:00:15]} 29. Bxf7 {[%emt 0:00:06]} Qf8 {[%emt 0:02:39]} 30. Qf6+ {[%emt 0:12:54]} Qg7 {[%emt 0:00:11]} 31. Qd8+ {[%emt 0:00:21]} Qf8 {[%emt 0:00:53]} 32. Rxd4 {[%emt 0:01:25]} Be7 {[%emt 0:01:41]} 33. Qxf8+ {[%emt 0:12:42]} Bxf8 {[%emt 0:00:08]} 34. Be8 {[%emt 0:00:23]} Be6 {[%emt 0:05:05]} 35. Bd7 {[%emt 0:08:39]} Bc5 {[%emt 0:03:35]} 36. Rd1 {[%emt 0:00:16]} Bxd7 {[%emt 0:00:31]} 37. Rxd7 {[%emt 0:00:04]} f4 {[%emt 0:00:12]} 38. Rf7 {[%emt 0:00:20]} Bd6 {[%emt 0:00:16]} 39. h5 {[%emt 0:00:20]} Kg8 {[%emt 0:00:37]} 40. g6 {[%emt 0:00:00]} hxg6 {[%emt 0:00:00]} 41. hxg6 {[%emt 0:00:08]} f3 {[%emt 0:02:39]} 42. Rxf3 {[%emt 0:00:22]} Kg7 {[%emt 0:00:05]} 43. Re3 {[%emt 0:01:13]} 1-0

[Event "56th Rubinstein Memorial A 2020"]
[Site "Polanica Zdroj"]
[Date "2020.08.22"]
[Round "8.5"]
[White "Polak, Michal"]
[Black "Wojcik, Wieslaw"]
[Result "0-1"]
[ECO "B32"]
[WhiteElo "1878"]
[BlackElo "1863"]
[Annotator "NA RC"]
[PlyCount "110"]
[EventDate "2020.08.15"]
[EventType "swiss"]
[EventCountry "POL"]
[SourceTitle "playchess.com"]
[Source "ChessBase"]
[SourceQuality "1"]
[TimeControl "40/5400+30:1800+30"]

1. e4 {[%emt 0:00:00]} c5 {[%emt 0:00:00]} 2. Nf3 {[%emt 0:00:02]} Nc6 {[%emt 0:00:00]} 3. d4 {[%emt 0:00:07]} cxd4 {[%emt 0:00:00]} 4. Nxd4 {[%emt 0:00:07]} e5 {[%emt 0:00:00]} 5. Nb5 {[%emt 0:00:24]} d6 {[%emt 0:00:00]} 6. N1c3 {[%emt 0:00:41]} a6 {[%emt 0:00:05]} 7. Na3 {[%emt 0:00:15]} b5 {[%emt 0:00:06]} 8. Nd5 {[%emt 0:00:12]} Nf6 {[%emt 0:00:08]} 9. Bg5 {[%emt 0:02:24]} Be7 {[%emt 0:00:12]} 10. Bxf6 {[%emt 0:00:43]} Bxf6 {[%emt 0:00:52]} 11. g3 {[%emt 0:03:44]} O-O {[%emt 0:06:02]} 12. Bg2 {[%emt 0:00:19] [#] B33: Sicilian: Pelikan and Sveshnikov Variations.} Ra7 $146 {[%emt 0:03:32]} ({Predecessor:} 12... Bg5 13. O-O Ne7 14. c4 Rb8 15. Nxe7+ Qxe7 16. Qd3 bxc4 17. Nxc4 Be6 18. h4 Bxc4 19. Qxc4 Bd2 20. Qxa6 Rxb2 {½-½ (59) Bitensky,I (2377)-Bronstein,O (2428) Petah Tikva 2020}) 13. O-O {[%emt 0:01:46]} Bg5 {[%emt 0:01:02]} 14. c3 {[%emt 0:08:56]} Ne7 {[%emt 0:12:31]} 15. Nc2 {[%emt 0:09:54]} Nxd5 {[%emt 0:03:16]} 16. Qxd5 {[%emt 0:01:40]} Be6 {[%emt 0:00:57]} 17. Qd1 $1 {[%emt 0:08:51]} a5 {[%emt 0:09:40]} 18. Re1 {[%emt 0:04:21]} Qb6 {[%emt 0:06:39]} 19. Ne3 {[%emt 0:03:04]} g6 {[%emt 0:08:16]} 20. Qd3 {[%emt 0:04:50]} f5 {[%emt 0:12:32]} 21. exf5 {[%emt 0:02:09]} Bxe3 {[%emt 0:01:05]} 22. Qxe3 {[%emt 0:04:28]} Qxe3 {[%emt 0:00:19]} 23. Rxe3 {[%emt 0:00:16]} gxf5 {[%emt 0:06:09]} 24. Rd1 {[%emt 0:10:23]} Ra6 {[%emt 0:02:18]} 25. Red3 {[%emt 0:07:24]} Rd8 {[%emt 0:00:35]} 26. Bd5 {[%emt 0:00:45]} Kf7 $1 {[%emt 0:00:26]} 27. f3 {[%emt 0:01:06]} Rb8 {[%emt 0:01:46]} 28. Kf2 {[%emt 0:10:56]} Bxd5 {[%emt 0:05:52]} 29. Rxd5 {[%emt 0:00:10]} Ke6 {[%emt 0:00:05]} 30. R5d3 {[%emt 0:05:05]} b4 {[%emt 0:03:04]} 31. R1d2 {[%emt 0:01:07]} Rc6 {[%emt 0:01:48]} 32. Rd5 {[%emt 0:01:47]} bxc3 {[%emt 0:00:34]} 33. bxc3 {[%emt 0:00:26]} Ra8 {[%emt 0:05:51]} 34. c4 {[%emt 0:03:02]} Raa6 {[%emt 0:00:18]} 35. Rc2 {[%emt 0:01:06]} Rxc4 {[%emt 0:04:25] [#]} 36. Rxe5+ $1 {[%emt 0:00:20]} Kxe5 {[%emt 0:00:34]} 37. Rxc4 {[%emt 0:00:07]} Rb6 {[%emt 0:00:30]} 38. Ke3 {[%emt 0:02:33]} Rb2 {[%emt 0:02:30]} 39. Ra4 {[%emt 0:00:42]} Rxh2 {[%emt 0:00:15]} 40. Rxa5+ {[%emt 0:00:00]} d5 {[%emt 0:00:00]} 41. Ra6 {[%emt 0:06:04]} d4+ {[%emt 0:05:15]} 42. Kd3 {[%emt 0:00:12]} Rg2 {[%emt 0:04:24]} 43. f4+ {[%emt 0:01:20]} Kd5 {[%emt 0:00:08]} 44. Ra5+ {[%emt 0:00:37]} Ke6 {[%emt 0:01:01]} 45. Kxd4 {[%emt 0:00:54]} Rxg3 {[%emt 0:08:05]} 46. Ra6+ {[%emt 0:00:37]} Kf7 {[%emt 0:00:17]} 47. Ke5 {[%emt 0:00:30]} h5 {[%emt 0:00:24]} 48. Kxf5 {[%emt 0:00:34]} h4 {[%emt 0:00:11]} 49. Ra7+ {[%emt 0:01:00]} Kg8 $11 {[%emt 0:00:07]} 50. Kf6 {[%emt 0:11:17]} h3 {[%emt 0:01:25]} 51. Ra5 {[%emt 0:02:38]} Rg7 {[%emt 0:06:42]} 52. Ra3 {[%emt 0:05:26]} h2 {[%emt 0:00:37]} 53. Rh3 {[%emt 0:01:41]} Rh7 {[%emt 0:00:22]} 54. Rg3+ {[%emt 0:02:35]} Kf8 {[%emt 0:00:19]} 55. Rc3 {[%emt 0:03:12]} Rh6+ {[%emt 0:00:25]} 0-1

[Event "56th Rubinstein Memorial A 2020"]
[Site "Polanica Zdroj"]
[Date "2020.08.22"]
[Round "8.6"]
[White "Kowalczyk, Wojciech"]
[Black "Mirowska, Oliwia"]
[Result "1-0"]
[ECO "B06"]
[WhiteElo "1873"]
[BlackElo "1898"]
[Annotator "NA RC"]
[PlyCount "81"]
[EventDate "2020.08.15"]
[EventType "swiss"]
[EventCountry "POL"]
[SourceTitle "playchess.com"]
[Source "ChessBase"]
[SourceQuality "1"]
[TimeControl "40/5400+30:1800+30"]

{[%evp 16,76,35,32767,26,0,32767,32767,32767,32767,94,64,55,53,130,123,133,126,126,112,114,32767,32767,268,257,280,32767,32767,32767,32767,32767,295,32767,32767,32767,405,469,464,443,430,32767,32767,32767,32767,32767,32767,523,32767,32767,32767,32767,363,397,450,445,479,409,505,445,430,624,482,471]} 1. e4 {[%emt 0:00:00]} g6 {[%emt 0:04:33]} 2. d4 {[%emt 0:00:00]} d6 {[%emt 0:00:07]} 3. Nc3 {[%emt 0:00:00]} Bg7 {[%emt 0:00:10]} 4. Be3 {[%emt 0:01:04]} a6 {[%emt 0:00:15]} 5. a4 {[%emt 0:03:20]} b6 {[%emt 0:00:12]} 6. Be2 {[%emt 0:03:51] B06: Modern Defence.} Bb7 {[%emt 0:00:32]} 7. Bf3 {[%emt 0:00:15]} Nd7 {[%emt 0:00:23]} 8. Nge2 {[%emt 0:02:22]} e5 {[%emt 0:00:34]} 9. d5 {[%emt 0:01:02] [#]} h5 $146 {[%emt 0:02:02]} ({Predecessor:} 9... Ngf6 10. g4 h5 11. g5 Nh7 12. h4 f6 13. Qd2 fxg5 14. hxg5 O-O 15. Bg2 Re8 {1-0 (56) Vetemaa,J (2325)-Heinimaki,L (2080) Jyvaskyla 1998}) 10. Nc1 {[%emt 0:12:48]} Ngf6 {[%emt 0:04:50]} 11. Be2 {[%emt 0:00:36]} Bc8 {[%emt 0:01:18]} 12. f3 {[%emt 0:00:51]} Rb8 {[%emt 0:00:45]} 13. b4 {[%emt 0:14:25]} Nh7 {[%emt 0:02:08]} 14. Qd2 {[%emt 0:08:44]} g5 {[%emt 0:01:50]} (14... O-O $14) 15. Nd3 {[%emt 0:06:42]} Ndf8 {[%emt 0:00:58]} 16. O-O-O {[%emt 0:06:23]} Ng6 {[%emt 0:01:21]} 17. g3 {[%emt 0:00:43]} Bd7 {[%emt 0:00:33]} 18. Rdg1 {[%emt 0:03:00]} c5 {[%emt 0:02:09] [#]} 19. dxc6 $1 {[%emt 0:10:14]} Bxc6 {[%emt 0:07:16]} 20. b5 {[%emt 0:00:25]} axb5 {[%emt 0:00:08]} 21. axb5 {[%emt 0:00:03]} Ba8 {[%emt 0:00:53]} 22. Nb4 {[%emt 0:00:21]} Qd7 {[%emt 0:01:02]} 23. Kb2 {[%emt 0:08:15]} f6 {[%emt 0:02:00]} 24. Ra1 {[%emt 0:00:50]} O-O {[%emt 0:00:17]} 25. Bc4+ {[%emt 0:06:22]} Kh8 {[%emt 0:00:06]} 26. Rhd1 {[%emt 0:02:50]} Rfc8 {[%emt 0:01:03]} 27. Bd5 {[%emt 0:01:25]} Bxd5 {[%emt 0:01:03]} 28. Qxd5 {[%emt 0:00:49]} Bf8 {[%emt 0:00:21]} 29. Nc6 {[%emt 0:00:53]} Rb7 {[%emt 0:00:59]} 30. Ra6 {[%emt 0:00:46]} Qc7 $2 {[%emt 0:00:53]} (30... Ne7 {might work better.} 31. Nxe7 (31. Qxd6 Qh3 $18) 31... Bxe7) 31. Qe6 {[%emt 0:01:10]} Ne7 {[%emt 0:02:18]} 32. Nd5 {[%emt 0:02:27]} Nxd5 {[%emt 0:00:40]} 33. Rxd5 {[%emt 0:00:31]} ({Don't take} 33. Qxd5 g4 $18) 33... Rbb8 {[%emt 0:04:11]} 34. Rd1 {[%emt 0:01:08]} ({Not} 34. Bxb6 Rxb6 35. Rxb6 Ra8 $16) 34... Re8 {[%emt 0:03:02]} 35. Qd5 {[%emt 0:00:52]} Rb7 {[%emt 0:01:23]} 36. Rda1 {[%emt 0:00:17]} f5 {[%emt 0:01:21]} 37. Ra8 {[%emt 0:01:36]} Rc8 $18 {[%emt 0:00:30]} (37... Nf6 $142) 38. Qe6 {[%emt 0:00:19]} Rxa8 {[%emt 0:03:47]} 39. Rxa8 {[%emt 0:00:05]} fxe4 {[%emt 0:00:50]} 40. fxe4 {[%emt 0:00:00]} Kg7 {[%emt 0:00:00]} 41. h4 {[%emt 0:05:10]} 1-0

[Event "56th Rubinstein Memorial A 2020"]
[Site "Polanica Zdroj"]
[Date "2020.08.22"]
[Round "8.7"]
[White "Topola, Rafal"]
[Black "Antoniewicz, Jakub"]
[Result "1-0"]
[ECO "B90"]
[WhiteElo "1808"]
[BlackElo "1806"]
[Annotator "NA RC"]
[PlyCount "71"]
[EventDate "2020.08.15"]
[EventType "swiss"]
[EventCountry "POL"]
[SourceTitle "playchess.com"]
[Source "ChessBase"]
[SourceQuality "1"]
[TimeControl "40/5400+30:1800+30"]

{[%evp 16,71,6,32767,32767,32767,32767,0,14,-20,0,-11,54,31,36,25,94,84,100,92,111,72,79,80,131,32767,155,93,87,65,75,75,32767,72,103,32767,32767,32767,32767,28,32767,32767,32767,32767,92,70,399,32767,32767,32767,32767,426,373,32767,32767,32767,32767,685]} 1. e4 {[%emt 0:00:00]} c5 {[%emt 0:00:00]} 2. Nf3 {[%emt 0:00:00]} d6 {[%emt 0:00:00]} 3. d4 {[%emt 0:00:00]} cxd4 {[%emt 0:00:00]} 4. Nxd4 {[%emt 0:00:00]} Nf6 {[%emt 0:00:00]} 5. Nc3 {[%emt 0:00:00]} a6 {[%emt 0:00:00]} 6. Be3 {[%emt 0:00:42]} e5 {[%emt 0:00:04]} 7. Nf3 {[%emt 0:00:23]} Be7 {[%emt 0:02:00]} 8. Bc4 {[%emt 0:00:37]} O-O {[%emt 0:07:13]} 9. O-O {[%emt 0:01:35]} Bg4 {[%emt 0:02:06] B90: Sicilian Najdorf: Unusual White 6th moves, 6 Be3 Ng4 and 6 Be3 e5.} 10. h3 {[%emt 0:00:50]} Bh5 {[%emt 0:00:34] [#]} 11. Qd2 $146 {[%emt 0:04:16]} ({White should try} 11. g4 $16 Bg6 12. Nh4) ({Predecessor:} 11. Bb3 Nbd7 12. g4 Bg6 13. Nh4 b5 14. Nf5 Nc5 15. Nd5 Bxf5 16. exf5 Nxd5 17. Bxd5 {1-0 (60) Korneev,O (2602)-Chernobay,A (2502) Moscow 2012}) 11... Nbd7 {[%emt 0:21:37]} 12. Rfe1 {[%emt 0:07:07]} Rc8 {[%emt 0:01:13]} 13. Bb3 {[%emt 0:01:13]} Rxc3 {[%emt 0:00:43]} 14. Qxc3 {[%emt 0:06:18]} Nxe4 {[%emt 0:00:59]} 15. Qb4 {[%emt 0:01:03]} Bxf3 {[%emt 0:04:51]} 16. gxf3 {[%emt 0:00:03]} Nec5 {[%emt 0:00:27]} 17. Rad1 {[%emt 0:11:02]} Qc8 {[%emt 0:00:45]} 18. Kg2 {[%emt 0:03:38]} Kh8 {[%emt 0:01:47]} 19. f4 {[%emt 0:09:08]} Qc7 {[%emt 0:23:38]} 20. Qc3 {[%emt 0:23:18]} b6 {[%emt 0:11:56]} 21. Bxc5 {[%emt 0:13:03]} bxc5 {[%emt 0:00:14]} 22. Qd3 {[%emt 0:01:14]} a5 {[%emt 0:04:33]} 23. Qb5 {[%emt 0:03:51]} Rb8 {[%emt 0:01:23]} 24. Qe2 {[%emt 0:01:00]} Rb4 {[%emt 0:04:21]} 25. Bxf7 {[%emt 0:03:18]} Rxf4 {[%emt 0:00:12]} 26. Bd5 {[%emt 0:01:27]} Bh4 {[%emt 0:01:15]} 27. Rf1 {[%emt 0:01:12]} Nf6 {[%emt 0:03:24]} 28. Qa6 {[%emt 0:00:44]} h5 {[%emt 0:03:52]} 29. Qb7 {[%emt 0:00:17]} Nxd5 {[%emt 0:02:12]} 30. Qxd5 {[%emt 0:00:11]} Rf6 $2 {[%emt 0:00:11]} (30... Qc8 $16) 31. Qa8+ {[%emt 0:00:19]} Kh7 {[%emt 0:00:21]} 32. Qe4+ {[%emt 0:00:08]} Rg6+ {[%emt 0:00:06] [#]} 33. Kh1 $1 {[%emt 0:01:21]} Qf7 {[%emt 0:01:36]} 34. Rxd6 {[%emt 0:03:26]} Bf6 {[%emt 0:00:05]} 35. Rg1 {[%emt 0:00:15]} Kh6 {[%emt 0:00:03]} 36. Rxg6+ $18 {[%emt 0:00:09]} 1-0

[Event "56th Rubinstein Memorial A 2020"]
[Site "Polanica Zdroj"]
[Date "2020.08.23"]
[Round "9.1"]
[White "Starosciak, Szymon"]
[Black "Dytman, Radoslaw"]
[Result "1/2-1/2"]
[ECO "A41"]
[WhiteElo "1850"]
[BlackElo "1867"]
[Annotator "NA"]
[PlyCount "65"]
[EventDate "2020.08.15"]
[EventType "swiss"]
[EventCountry "POL"]
[SourceTitle "playchess.com"]
[Source "ChessBase"]
[SourceQuality "1"]
[TimeControl "40/5400+30:1800+30"]

{[%evp 10,47,2,-7,-10,-14,-24,-16,-26,-23,-8,-25,-1,-39,-29,-27,0,-24,0,-17,-22,-28,-16,-13,0,-26,0,-29,-3,-25,-28,-38,-16,-25,32767,32767,-12,-15,-8,-24]} 1. d4 {[%emt 0:00:00]} d6 {[%emt 0:00:47]} 2. c4 {[%emt 0:00:42]} e5 {[%emt 0:00:11]} 3. dxe5 {[%emt 0:01:49]} dxe5 {[%emt 0:00:08]} 4. Qxd8+ {[%emt 0:00:05]} Kxd8 {[%emt 0:00:05]} 5. Nc3 {[%emt 0:01:47]} Be6 {[%emt 0:02:46]} 6. b3 {[%emt 0:01:36]} c6 {[%emt 0:01:01]} 7. Bb2 {[%emt 0:00:25]} f6 {[%emt 0:00:42]} 8. e3 {[%emt 0:05:09] A41: 1 d4 d6: Tartakower System and Modern Defence.} Kc7 {[%emt 0:00:33]} 9. Nf3 {[%emt 0:01:19]} a5 {[%emt 0:03:04]} 10. Be2 {[%emt 0:01:18]} Na6 {[%emt 0:01:55]} 11. O-O {[%emt 0:00:41]} Nh6 {[%emt 0:02:15]} 12. Rac1 {[%emt 0:02:05] [#]} Nf7 $146 {[%emt 0:04:47]} ({Predecessor:} 12... Rd8 13. Rfd1 Rxd1+ 14. Rxd1 Nc5 15. Ne1 Nf7 16. Nd3 Nxd3 17. Bxd3 f5 18. Na4 b6 {½-½ (32) Julin,A (2236)-Aridov,V (2157) Kiev 2007}) 13. Nd5+ {[%emt 0:03:23]} Kd8 {[%emt 0:07:43]} 14. Nb6 {[%emt 0:02:28]} Ra7 {[%emt 0:06:14]} 15. Rfd1+ {[%emt 0:00:50]} Kc7 {[%emt 0:02:41]} 16. Nd5+ {[%emt 0:00:16]} Kb8 {[%emt 0:00:16]} 17. Nc3 {[%emt 0:00:34]} Nc5 {[%emt 0:06:05]} 18. Nd2 {[%emt 0:06:43]} a4 {[%emt 0:05:08]} 19. Nde4 {[%emt 0:04:10]} (19. b4 $5 {[%cal Rb4c5]} a3 20. Ba1 $11) 19... Nxe4 {[%emt 0:03:50]} 20. Nxe4 {[%emt 0:00:06]} axb3 {[%emt 0:00:09]} 21. axb3 {[%emt 0:00:08]} Ra2 {[%emt 0:00:42]} 22. Rd2 {[%emt 0:01:29]} Rxb2 {[%emt 0:05:20]} 23. Rxb2 {[%emt 0:00:11]} Ba3 {[%emt 0:00:07]} 24. Rcc2 $11 {[%emt 0:03:51]} Bxb2 {[%emt 0:08:10]} 25. Rxb2 {[%emt 0:00:05]} Kc7 {[%emt 0:02:38]} 26. Nc5 {[%emt 0:04:57]} Bc8 {[%emt 0:04:30]} 27. Rd2 {[%emt 0:01:19]} b6 {[%emt 0:10:48]} 28. Ne4 {[%emt 0:00:48]} Be6 {[%emt 0:00:39]} 29. Ra2 {[%emt 0:00:42]} Kb7 {[%emt 0:00:49]} 30. Kf1 {[%emt 0:01:52]} Rd8 {[%emt 0:00:47]} 31. Ke1 Nd6 32. Rd2 Kc7 33. c5 1/2-1/2

[Event "56th Rubinstein Memorial A 2020"]
[Site "Polanica Zdroj"]
[Date "2020.08.23"]
[Round "9.2"]
[White "Sabuk, Piotr"]
[Black "Luch, Michal"]
[Result "1-0"]
[ECO "D30"]
[WhiteElo "2377"]
[BlackElo "2409"]
[Annotator "ChessBase"]
[PlyCount "99"]
[EventDate "2020.08.15"]
[EventType "swiss"]
[EventCountry "POL"]
[SourceTitle "playchess.com"]
[Source "ChessBase"]
[SourceQuality "1"]
[TimeControl "40/5400+30:1800+30"]

1. d4 {[%emt 0:00:00]} d5 {[%emt 0:00:00]} 2. c4 {[%emt 0:00:00]} e6 {[%emt 0:00:02]} 3. Nf3 {[%emt 0:00:00]} Nf6 {[%emt 0:00:13]} 4. g3 {[%emt 0:00:04]} Bb4+ {[%emt 0:00:10]} 5. Bd2 {[%emt 0:00:25]} Be7 {[%emt 0:00:09]} 6. Bg2 {[%emt 0:00:59]} O-O {[%emt 0:00:28]} 7. O-O {[%emt 0:03:20]} Nbd7 {[%emt 0:00:15]} 8. Qc2 {[%emt 0:02:32]} Ne4 {[%emt 0:00:05]} 9. Bc1 {[%emt 0:10:32]} c6 {[%emt 0:02:59]} 10. Nc3 {[%emt 0:01:15]} Nxc3 {[%emt 0:06:54]} 11. bxc3 {[%emt 0:03:38]} b6 {[%emt 0:10:39]} 12. cxd5 {[%emt 0:24:06]} cxd5 {[%emt 0:00:11]} 13. c4 {[%emt 0:00:10]} Bb7 {[%emt 0:03:42]} 14. cxd5 {[%emt 0:01:33]} Rc8 {[%emt 0:04:05]} 15. Qb1 {[%emt 0:01:32]} Bxd5 {[%emt 0:00:11]} 16. e4 {[%emt 0:01:09]} Bb7 {[%emt 0:01:34]} 17. Bf4 {[%emt 0:05:31]} Nf6 {[%emt 0:01:23]} 18. Re1 {[%emt 0:05:39]} Rc4 {[%emt 0:05:32]} 19. Qd3 {[%emt 0:08:05]} Ra4 {[%emt 0:00:02]} 20. a3 {[%emt 0:09:57]} a6 {[%emt 0:03:25]} 21. Bc1 {[%emt 0:02:53]} Qd7 {[%emt 0:14:00]} 22. Bb2 {[%emt 0:01:14]} Qb5 {[%emt 0:00:26]} 23. Qxb5 {[%emt 0:04:45]} axb5 {[%emt 0:00:00]} 24. Ne5 {[%emt 0:01:21]} b4 {[%emt 0:08:55]} 25. axb4 {[%emt 0:01:00]} Rxa1 {[%emt 0:00:06]} 26. Bxa1 {[%emt 0:01:58]} Bxb4 {[%emt 0:02:21]} 27. Rb1 {[%emt 0:00:10]} Ba5 {[%emt 0:16:43]} 28. f3 {[%emt 0:00:22]} Rc8 {[%emt 0:04:27]} 29. Bf1 {[%emt 0:00:28]} Bc6 {[%emt 0:05:41]} 30. Kf2 {[%emt 0:07:28]} Be8 {[%emt 0:03:23]} 31. Bd3 {[%emt 0:00:18]} Ba4 {[%emt 0:01:30]} 32. Ke3 {[%emt 0:00:56]} Nd7 {[%emt 0:01:15]} 33. Nc4 {[%emt 0:01:45]} Bc2 {[%emt 0:04:22]} 34. Bxc2 {[%emt 0:00:00]} Rxc4 {[%emt 0:00:01]} 35. Bd3 {[%emt 0:00:13]} Rc7 {[%emt 0:00:22]} 36. Bb2 {[%emt 0:00:48]} f6 {[%emt 0:00:30]} 37. f4 {[%emt 0:01:00]} Kf7 {[%emt 0:00:37]} 38. g4 {[%emt 0:00:48]} Nb8 {[%emt 0:01:09]} 39. h4 {[%emt 0:00:29]} Rc8 {[%emt 0:00:32]} 40. h5 {[%emt 0:00:00]} h6 {[%emt 0:00:00]} 41. Ra1 {[%emt 0:07:56]} Rc7 {[%emt 0:04:21]} 42. Ra4 {[%emt 0:04:13]} Nc6 {[%emt 0:01:54]} 43. Ba3 {[%emt 0:07:09]} Bc3 {[%emt 0:14:05]} 44. d5 {[%emt 0:02:39]} Na5 {[%emt 0:01:14]} 45. d6 {[%emt 0:01:47]} Rc8 {[%emt 0:00:08]} 46. d7 {[%emt 0:04:02]} Rd8 {[%emt 0:00:13]} 47. Bb5 {[%emt 0:00:32]} Nb3 {[%emt 0:02:25]} 48. Rc4 {[%emt 0:02:47]} Bd2+ {[%emt 0:00:48]} 49. Kd3 {[%emt 0:00:53]} Bxf4 {[%emt 0:01:00]} 50. Rc8 {[%emt 0:00:24]} 1-0

[Event "56th Rubinstein Memorial A 2020"]
[Site "Polanica Zdroj"]
[Date "2020.08.23"]
[Round "9.2"]
[White "Betkowski, Andrzej"]
[Black "Grzesik, Norbert"]
[Result "1-0"]
[ECO "A45"]
[WhiteElo "2044"]
[BlackElo "1980"]
[Annotator "NA"]
[PlyCount "110"]
[EventDate "2020.08.15"]
[EventType "swiss"]
[EventCountry "POL"]
[SourceTitle "playchess.com"]
[Source "ChessBase"]
[SourceQuality "1"]
[TimeControl "40/5400+30:1800+30"]

1. d4 {[%emt 0:00:00]} Nf6 {[%emt 0:00:00]} 2. Bg5 {[%emt 0:00:00]} d5 {[%emt 0:00:00]} 3. e3 {[%emt 0:00:34]} c5 {[%emt 0:00:08]} 4. c3 {[%emt 0:01:17]} Qb6 {[%emt 0:01:15]} 5. Qb3 {[%emt 0:01:37]} Nbd7 {[%emt 0:07:07]} 6. Nf3 {[%emt 0:02:53]} c4 {[%emt 0:00:51]} 7. Qc2 {[%emt 0:04:06]} Qc6 {[%emt 0:08:03]} 8. Nbd2 {[%emt 0:03:30]} b5 {[%emt 0:04:00]} 9. Be2 {[%emt 0:03:17]} e6 {[%emt 0:01:27]} 10. Ne5 {[%emt 0:08:19]} Nxe5 {[%emt 0:03:55]} 11. dxe5 {[%emt 0:00:06]} Nd7 {[%emt 0:01:54]} 12. Nf3 {[%emt 0:02:05]} Qc7 {[%emt 0:02:22]} 13. Bf4 {[%emt 0:04:24]} Rb8 {[%emt 0:05:44]} 14. O-O {[%emt 0:02:52]} g6 {[%emt 0:01:20]} 15. a4 {[%emt 0:07:46]} b4 {[%emt 0:08:24]} 16. cxb4 {[%emt 0:00:28]} Rxb4 {[%emt 0:00:25]} 17. Nd4 {[%emt 0:07:05]} Ba6 {[%emt 0:02:04]} 18. b3 {[%emt 0:04:13]} Bc5 $11 {[%emt 0:03:40]} 19. bxc4 {[%emt 0:07:36]} Bxc4 {[%emt 0:01:08]} 20. Nb5 {[%emt 0:02:36]} Qa5 {[%emt 0:07:11]} 21. Nd6+ {[%emt 0:11:54]} Bxd6 {[%emt 0:00:27]} 22. exd6 {[%emt 0:00:06]} O-O {[%emt 0:00:52]} 23. Bh6 {[%emt 0:04:20]} Rfb8 {[%emt 0:02:36]} 24. Qc3 {[%emt 0:04:06]} f6 {[%emt 0:00:10]} 25. Bxc4 {[%emt 0:01:21]} dxc4 {[%emt 0:00:07]} 26. e4 {[%emt 0:01:25]} Qc5 {[%emt 0:04:14]} 27. Be3 {[%emt 0:01:40]} Qxd6 {[%emt 0:00:38]} 28. Bxa7 {[%emt 0:01:13]} R8b7 {[%emt 0:01:12]} 29. Rfd1 {[%emt 0:01:27]} Qc7 {[%emt 0:01:14]} 30. Be3 {[%emt 0:03:30]} Rb3 {[%emt 0:00:48]} 31. Qd4 {[%emt 0:00:41]} Qc6 {[%emt 0:17:02]} 32. a5 {[%emt 0:01:20]} Qa6 {[%emt 0:00:17]} 33. Qd6 {[%emt 0:01:15]} Qxd6 {[%emt 0:03:03]} 34. Rxd6 {[%emt 0:00:02]} Rb1+ {[%emt 0:00:38]} 35. Rd1 {[%emt 0:00:06]} Rxd1+ {[%emt 0:01:54]} 36. Rxd1 {[%emt 0:00:02]} Nb8 {[%emt 0:06:14]} 37. Kf1 {[%emt 0:00:11]} Kf7 {[%emt 0:00:55]} 38. Ra1 {[%emt 0:05:12]} Na6 {[%emt 0:00:08]} 39. Bb6 {[%emt 0:00:07]} Rb8 {[%emt 0:01:33]} 40. Ke2 {[%emt 0:00:00]} Ke7 {[%emt 0:00:00]} 41. Kd2 {[%emt 0:01:00]} Rc8 {[%emt 0:02:09]} 42. Kc3 {[%emt 0:01:03]} Rc6 {[%emt 0:01:53]} 43. Ra4 {[%emt 0:02:28]} Kd6 {[%emt 0:00:02]} 44. Rxc4 {[%emt 0:00:51]} Rxc4+ {[%emt 0:00:04]} 45. Kxc4 {[%emt 0:00:04]} Kc6 {[%emt 0:00:02]} 46. Bd8 {[%emt 0:03:15]} f5 {[%emt 0:00:23]} 47. e5 {[%emt 0:00:35]} Nc5 {[%emt 0:01:10]} 48. Bb6 {[%emt 0:02:11]} Nd7 {[%emt 0:00:29]} 49. Bd4 {[%emt 0:00:18]} Nb8 {[%emt 0:00:11]} 50. Bc5 {[%emt 0:00:21]} Nd7 {[%emt 0:01:09]} 51. Bd6 {[%emt 0:00:33]} g5 {[%emt 0:01:28]} 52. f3 {[%emt 0:00:54]} h5 {[%emt 0:00:40]} 53. h4 {[%emt 0:01:11]} g4 {[%emt 0:01:27]} 54. f4 {[%emt 0:00:07]} g3 {[%emt 0:00:07]} 55. Kb4 {[%emt 0:01:11]} Kd5 1-0